Cogmind - Beta 13 @@@ ROGUE MODE // 2024.04.24 @ 18:34:36 Player: Sherlockkat Result: Destroyed by G-50 Soldier with Heavy Laser Performance ------------- Evolutions (4) 2000 Regions Visited (13) 2600 Robots Destroyed (45) 225 Value Destroyed (838) 838 Prototype IDs (4) 80 Alien Tech Used (0) 0 Bonus (897) 897 TOTAL SCORE: 6640 Bonus ------- Follower Combat Kills 97 Entered DSFs 500 Aligned with FarCom 300 Cogmind --------- Core Integrity 0/850 Matter 280/300 Energy 98/100 System Corruption 0% Temperature Cool (9) Movement Core (50) Location -6/Extension Parts ------- > --- POWER (1) -------- (None) > --- PROPULSION (4) --- (None) > --- UTILITY (8) ------ (None) > --- WEAPON (2) ------- (None) > --- INVENTORY (5) ---- Light Fission Core Large Storage Unit Improved Propulsion Shielding Advanced Beam Cannon Mini Grenade Launcher Peak State ------------ > --- POWER ------------ Improved Ion Engine > --- PROPULSION ------- Light Treads Light Treads Improved Treads Armored Treads > --- UTILITY ---------- High-capacity Storage Unit Machine Analyzer Seismic Detector Modified TNC Advanced Targeting Computer Hacking Suite > --- WEAPON ----------- Advanced Beam Cannon Light Assault Rifle > --- INVENTORY -------- Ion Engine Advanced Treads Superbattery Experimental Sensor Array Field Laser Field Laser Field Laser EM Pulse Cannon Advanced Beam Cannon Advanced Beam Cannon Light Assault Rifle Autogun Mini Grenade Launcher Mini Grenade Launcher [Rating: 34] Favorites ----------- Power Ion Engine Engine Ion Engine Power Core Light Fission Core Propulsion Light Treads Treads Light Treads Flight Unit Cesium-ion Thruster Utility Seismic Detector Device Seismic Detector Storage High-capacity Storage Unit Processor Machine Analyzer Hackware Hacking Suite Protection Improved Light Armor Plating Weapon Light Assault Rifle Energy Gun EM Pulse Gun Energy Cannon Advanced Beam Cannon Ballistic Gun Light Assault Rifle Launcher Mini Grenade Launcher Slashing Weapon Power Sword Build | -11 -10 -10 -9 -9 -9 -8 -8 -7 -7 -7 -7 -6 -6 ------- Run | Yrd Mat Min Mat Min Exi Min Mat Fac Was Fac DSF Fac Ext Slots Evolved 8 | . . . 2 . . . 2 2 . . . 2 . Power . | . . . . . . . . . . . . . . Propulsion 2 | . . . 1 . . . 1 . . . . . . Utility 6 | . . . 1 . . . 1 2 . . . 2 . Weapon . | . . . . . . . . . . . . . . Parts Attached 49 | 7 7 1 2 4 3 . 6 2 . 3 2 12 . Power 6 | 1 . . . 1 . . . . . 1 . 3 . Engine 5 | 1 . . . 1 . . . . . 1 . 2 . Core 1 | . . . . . . . . . . . . 1 . Reactor . | . . . . . . . . . . . . . . Propulsion 14 | 2 1 . 1 1 . . 5 . . 1 1 2 . Treads 10 | 2 1 . 1 1 . . 5 . . . . . . Leg . | . . . . . . . . . . . . . . Wheel . | . . . . . . . . . . . . . . Hover . | . . . . . . . . . . . . . . Flight 4 | . . . . . . . . . . 1 1 2 . Utility 16 | 2 . 1 1 . 3 . 1 2 . 1 . 5 . Device 6 | 1 . . . . 2 . . . . . . 3 . Storage 3 | 1 . 1 . . 1 . . . . . . . . Processor 3 | . . . 1 . . . 1 1 . . . . . Hackware 1 | . . . . . . . . 1 . . . . . Protection 3 | . . . . . . . . . . 1 . 2 . Artifact . | . . . . . . . . . . . . . . Weapon 13 | 2 6 . . 2 . . . . . . 1 2 . Energy Gun 1 | 1 . . . . . . . . . . . . . Energy Cannon 5 | . 3 . . 1 . . . . . . . 1 . Ballistic Gun 2 | 1 1 . . . . . . . . . . . . Ballistic Cannon . | . . . . . . . . . . . . . . Launcher 4 | . 2 . . 1 . . . . . . 1 . . Special Weapon . | . . . . . . . . . . . . . . Impact Weapon . | . . . . . . . . . . . . . . Slashing Weapon 1 | . . . . . . . . . . . . 1 . Piercing Weapon . | . . . . . . . . . . . . . . Special Melee Weapon . | . . . . . . . . . . . . . . Unidentified Prototypes 4 | . 1 . . . 2 . . 1 . . . . . Parts Lost 15 | . . . . 1 . . . . 6 . 1 1 6 Power 2 | . . . . . . . . . 1 . . . 1 Propulsion 6 | . . . . 1 . . . . 1 . 1 . 3 Utility 5 | . . . . . . . . . 3 . . 1 1 Weapon 2 | . . . . . . . . . 1 . . . 1 Highest Loss Streak 6 | . . . . 1 . . . . 6 . 1 1 5 To Critical Strikes 2 | . . . . . . . . . 2 . . . . Average Slot Usage (%) 90 | . 99 100 100 99 100 100 98 100 80 8 21 30 15 Engine 10 | . 14 14 11 11 11 11 9 7 5 . . 4 2 Treads 27 | . 27 28 33 32 33 33 36 30 24 . . . . Flight 1 | . . . . . . . . . . 3 10 17 7 Device 10 | . 14 14 11 11 10 11 9 7 5 . . 2 . Storage 10 | . 14 14 11 11 11 11 9 7 5 . . . . Processor 7 | . . . 11 11 11 11 16 23 18 . . . . Energy Cannon 9 | . 12 14 11 8 11 11 9 7 5 . . . . Ballistic Gun 10 | . 13 14 11 11 11 11 9 7 5 . . . . Naked Turns 161 | . . . . . . . . . 56 37 . . 68 Heaviest Build 56 | 14 16 51 51 53 56 53 53 53 53 3 4 16 16 Greatest Support 86 | 40 40 40 63 66 66 66 86 83 83 6 9 16 16 Greatest Overweight (x) 13 | . . 1 . . . . . . 13 . . . . Average Overweight (x) . | . . . . . . . . . . . . . . Largest Inventory Capacity 20 | 8 8 20 20 20 20 20 20 20 20 5 5 5 5 Average Capacity 15 | 6 8 13 20 20 20 20 20 20 17 5 5 5 5 Most Carried 17 | 2 8 11 10 12 14 14 17 15 14 5 5 5 5 Average Carried 9 | 1 7 8 9 10 12 14 14 14 12 4 4 4 5 Final Capacity 20 | 8 8 20 20 20 20 20 20 20 5 5 5 5 5 Final Carried 16 | 2 8 11 10 12 14 14 16 14 5 5 4 5 5 Class Distribution -------------------- 84% | Mutant 10% | Scavenger-Mutant 4% | Sprinter Dominant Class ---------------- Mutant | -10/Materials Mutant | -10/Mines Mutant | -9/Materials Mutant | -9/Mines Mutant | -9/Exiles Mutant | -8/Mines Mutant | -8/Materials Scavenger-Mutant | -7/Factory Scavenger-Mutant | -7/Waste Mutant | -7/Factory Mutant | -7/DSF Sprinter | -6/Factory Mutant | -6/Extension Resources | -11 -10 -10 -9 -9 -9 -8 -8 -7 -7 -7 -7 -6 -6 ----------- Run | Yrd Mat Min Mat Min Exi Min Mat Fac Was Fac DSF Fac Ext Matter Collected 768 | 271 100 41 21 81 . . 96 . . . . 131 27 Remotely . | . . . . . . . . . . . . . . Salvage Created 1455 | 127 229 243 13 243 . . 427 . . . 21 131 21 Parts 87 | 5 22 8 3 25 . . 18 . . . 3 . 3 Haulers Intercepted 2 | . 1 . . . . . 1 . . . . . . Recyclers Shooed 1 | . . . . . . . . . . . . . 1 Parts Field Recycled . | . . . . . . . . . . . . . . Retrieved Matter . | . . . . . . . . . . . . . . Parts Self-Destructed . | . . . . . . . . . . . . . . Prevented . | . . . . . . . . . . . . . . Kills | -11 -10 -10 -9 -9 -9 -8 -8 -7 -7 -7 -7 -6 -6 ------- Run | Yrd Mat Min Mat Min Exi Min Mat Fac Was Fac DSF Fac Ext Combat Hostiles Destroyed 30 | . 7 5 . 9 . . 7 . . . 2 . . Guns 2 | . . . . 1 . . 1 . . . . . . Cannons 13 | . 2 4 . 2 . . 5 . . . . . . AOE 11 | . 5 . . 4 . . . . . . 2 . . Classes Destroyed 12 | 2 5 1 1 2 . . . . . . 1 . . Worker 4 | . . . . 4 . . . . . . . . . Builder 4 | . 1 1 . 1 . . . . . . . . 1 Tunneler 1 | 1 . . . . . . . . . . . . . Hauler 2 | . 1 . . . . . 1 . . . . . . Recycler 4 | 1 . 2 . . . . . . . . . 1 . Operator 1 | . . . 1 . . . . . . . . . . Watcher 2 | . 2 . . . . . . . . . . . . Swarmer 13 | . 6 . . 7 . . . . . . . . . Cutter 2 | . . . . . . . . . . . 2 . . Grunt 8 | . 1 2 . . . . 5 . . . . . . Sentry 4 | . . . . 2 . . 2 . . . . . . Assembled 3 | . . 3 . . . . . . . . . . . Best Kill Streak 5 | 1 5 2 1 4 . . 3 . . . 2 1 1 Combat Bots Only 4 | . 3 2 . 4 . . 3 . . . 2 . . Max Kills in Single Turn 4 | 1 3 1 1 4 . . 1 . . . 1 1 1 Gunslinging . | . . . . . . . . . . . . . . Exploded 4 | . 2 . . 4 . . . . . . 1 . . Melee . | . . . . . . . . . . . . . . Uniques/NPCs Destroyed . | . . . . . . . . . . . . . . Combat | -11 -10 -10 -9 -9 -9 -8 -8 -7 -7 -7 -7 -6 -6 -------- Run | Yrd Mat Min Mat Min Exi Min Mat Fac Was Fac DSF Fac Ext Hostile Shots Fired 340 | . 19 17 . 32 . . 39 . 11 . 12 13 197 Missed 123 | . 5 4 . 14 . . 9 . 2 . 5 5 79 Damage Taken 3096 | . 111 175 . 227 . . 489 . 424 . 318 99 1253 Core 1405 | . . 13 . 52 . . 81 . 329 . 72 23 835 Absorbed by Shields 48 | . . . . . . . . . . . . . 48 Core Remaining (%) 81 | 100 . 94 . . . 87 85 . . . 42 . . Volleys Fired 98 | 6 14 20 1 28 . . 25 . . . 3 1 . Largest 2 | 2 2 2 2 2 . . 2 . . . 1 1 . Hottest 88 | 60 88 88 88 88 . . 88 . . . 30 68 . Shots Fired 183 | 7 25 40 2 55 . . 50 . . . 3 1 . Gun 91 | 7 11 20 1 27 . . 25 . . . . . . Cannon 84 | . 11 20 1 26 . . 25 . . . . 1 . Launcher 8 | . 3 . . 2 . . . . . . 3 . . Special . | . . . . . . . . . . . . . . Kinetic 85 | 1 11 20 1 27 . . 25 . . . . . . Thermal 84 | . 11 20 1 26 . . 25 . . . . 1 . Explosive 8 | . 3 . . 2 . . . . . . 3 . . Electromagnetic 6 | 6 . . . . . . . . . . . . . Robot Hit Streak 12 | 4 7 6 1 8 . . 12 . . . 1 2 . Robot Miss Streak 4 | 1 2 3 1 2 . . 4 . . . 2 . . Penetration Max . | . . . . . . . . . . . . . . Secondary Targets . | . . . . . . . . . . . . . . Shots Hit Robots 122 | 5 17 22 1 37 . . 37 . . . 1 1 1 Core Hits 64 | 3 13 12 1 16 . . 17 . . . 2 . . Critical Kills 5 | . . 1 . 2 . . 1 . . . . 1 . Critical Parts Destroyed 1 | . 1 . . . . . . . . . . . . Critical Strikes 6 | . 1 1 . 2 . . 1 . . . . 1 . Meltdown 5 | . . 1 . 2 . . 1 . . . . 1 . Destroy 1 | . 1 . . . . . . . . . . . . Melee Attacks 2 | . . . . . . . . . . . . 1 1 Impact . | . . . . . . . . . . . . . . Slashing 2 | . . . . . . . . . . . . 1 1 Piercing . | . . . . . . . . . . . . . . Sneak Attacks 1 | . . . . . . . . . . . . . 1 Combat Hostiles . | . . . . . . . . . . . . . . Follow-up Attacks . | . . . . . . . . . . . . . . Damage Inflicted 2491 | 65 527 347 20 778 . . 523 . . . 129 20 82 Guns 506 | 65 64 80 . 144 . . 153 . . . . . . Cannons 1210 | . 165 267 20 368 . . 370 . . . . 20 . Explosions 693 | . 298 . . 266 . . . . . . 129 . . Melee 66 | . . . . . . . . . . . . . 66 Ramming 16 | . . . . . . . . . . . . . 16 Kinetic 451 | 10 64 80 . 144 . . 153 . . . . . . Thermal 1210 | . 165 267 20 368 . . 370 . . . . 20 . Explosive 693 | . 298 . . 266 . . . . . . 129 . . Electromagnetic 55 | 55 . . . . . . . . . . . . . Impact . | . . . . . . . . . . . . . . Slashing 66 | . . . . . . . . . . . . . 66 Piercing . | . . . . . . . . . . . . . . Highest Corruption . | . . . . . . . . . . . . . . Average Corruption . | . . . . . . . . . . . . . . Corruption Purged . | . . . . . . . . . . . . . . Corruption Blocked . | . . . . . . . . . . . . . . Overload Shots . | . . . . . . . . . . . . . . Overflow Damage 63 | . 10 2 . 15 . . . . . . . . 36 Projectiles 2 | . . 2 . . . . . . . . . . . Explosions 25 | . 10 . . 15 . . . . . . . . . Melee 36 | . . . . . . . . . . . . . 36 Knockbacks . | . . . . . . . . . . . . . . Impact . | . . . . . . . . . . . . . . Kinetic . | . . . . . . . . . . . . . . Secondary . | . . . . . . . . . . . . . . Self-Inflicted Damage 145 | . . . . 17 . . . . . . 120 . 8 Shots 4 | . . . . 1 . . . . . . 3 . . Rammed 4 | . . . . . . . . . . . . . 4 Targets Rammed 4 | . . . . . . . . . . . . . 4 Kicked . | . . . . . . . . . . . . . . Crushed . | . . . . . . . . . . . . . . Highest Temperature 325 | 20 96 208 42 157 . . 325 . . . . 10 4 Average Temperature 65 | 15 44 68 27 50 . . 94 . . . . 7 4 Received Heat Transfer 665 | . 18 21 . 27 . . 279 . . . 27 24 269 Siege Activations . | . . . . . . . . . . . . . . Robots Corrupted . | . . . . . . . . . . . . . . Combat Hostiles . | . . . . . . . . . . . . . . Parts Fried . | . . . . . . . . . . . . . . Impact Corruptions . | . . . . . . . . . . . . . . Robots Melted 5 | . . 1 . 2 . . 1 . . . . 1 . Combat Hostiles 4 | . . 1 . 2 . . 1 . . . . . . Parts Melted 12 | . 2 . . 4 . . 2 . . . . 4 . Heat Transferred 2183 | . 296 481 37 666 . . 666 . . . . 37 . Parts Sabotaged . | . . . . . . . . . . . . . . Parts Stolen . | . . . . . . . . . . . . . . Parts Stripped . | . . . . . . . . . . . . . . Power Chain Reactions . | . . . . . . . . . . . . . . Alert | -11 -10 -10 -9 -9 -9 -8 -8 -7 -7 -7 -7 -6 -6 ------- Run | Yrd Mat Min Mat Min Exi Min Mat Fac Was Fac DSF Fac Ext Peak Influence 297 | 10 248 83 65 110 . . 168 47 16 5 97 160 297 Initial 78 | . 6 18 . 5 . . . 47 16 . 3 45 78 Average 49 | 5 110 28 24 42 . . 63 47 12 . 43 97 188 Maximum Alert Level 1 | . 1 . . . . . . . . . . . 1 Low Security (%) 95 | 100 63 100 100 100 . 100 100 100 100 100 100 100 58 Level 1 4 | . 36 . . . . . . . . . . . 41 Level 2 . | . . . . . . . . . . . . . . Level 3 . | . . . . . . . . . . . . . . Level 4 . | . . . . . . . . . . . . . . Level 5 . | . . . . . . . . . . . . . . High Security . | . . . . . . . . . . . . . . Max Security . | . . . . . . . . . . . . . . Squads Dispatched 8 | . . 1 2 . . . 1 . . . 1 1 2 Investigation 3 | . . 1 1 . . . . . . . . . 1 Extermination . | . . . . . . . . . . . . . . Reinforcement 4 | . . . 1 . . . . . . . 1 1 1 Assault . | . . . . . . . . . . . . . . Garrison 1 | . . . . . . . 1 . . . . . . Intercept . | . . . . . . . . . . . . . . Searches Triggered . | . . . . . . . . . . . . . . Construction Impeded . | . . . . . . . . . . . . . . Haulers Reinforced . | . . . . . . . . . . . . . . Active Scanning Responses . | . . . . . . . . . . . . . . Cargo Convoy Interrupts . | . . . . . . . . . . . . . . Stealth | -11 -10 -10 -9 -9 -9 -8 -8 -7 -7 -7 -7 -6 -6 --------- Run | Yrd Mat Min Mat Min Exi Min Mat Fac Was Fac DSF Fac Ext Distress Signals 3 | . . . 1 . . . 1 . . . . . 1 Communications Jammed . | . . . . . . . . . . . . . . Distress Signals . | . . . . . . . . . . . . . . Times Spotted 80 | . 9 5 6 10 . . 11 . 6 . 8 6 19 Peak Tracking Total 9 | . 5 2 2 4 . . 3 . 6 . 5 5 9 Tactical Retreats 11 | . . . 1 1 . . . . . . 2 2 5 Traps | -11 -10 -10 -9 -9 -9 -8 -8 -7 -7 -7 -7 -6 -6 ------- Run | Yrd Mat Min Mat Min Exi Min Mat Fac Was Fac DSF Fac Ext Traps Triggered 6 | . 1 . 1 . . . . 1 . . . 1 2 Indirectly . | . . . . . . . . . . . . . . Trap Hack Attempts . | . . . . . . . . . . . . . . Triggered . | . . . . . . . . . . . . . . Disarmed . | . . . . . . . . . . . . . . Reprogrammed . | . . . . . . . . . . . . . . Reused . | . . . . . . . . . . . . . . Traps Extracted . | . . . . . . . . . . . . . . Installed . | . . . . . . . . . . . . . . Triggered . | . . . . . . . . . . . . . . Machines | -11 -10 -10 -9 -9 -9 -8 -8 -7 -7 -7 -7 -6 -6 ---------- Run | Yrd Mat Min Mat Min Exi Min Mat Fac Was Fac DSF Fac Ext Machines Disabled 3 | . 2 . . . . . 1 . . . . . . Max in Single Turn 1 | . 1 . . . . . 1 . . . . . . Machines Repaired . | . . . . . . . . . . . . . . Machines Dismantled . | . . . . . . . . . . . . . . Machines Sabotaged . | . . . . . . . . . . . . . . Overloaded Fab Kills . | . . . . . . . . . . . . . . Hacking | -11 -10 -10 -9 -9 -9 -8 -8 -7 -7 -7 -7 -6 -6 --------- Run | Yrd Mat Min Mat Min Exi Min Mat Fac Was Fac DSF Fac Ext Machines Accessed 20 | . 4 2 2 . . . 4 . . 1 . 3 4 Terminals 17 | . 4 . 2 . . . 3 . . 1 . 3 4 Fabricators . | . . . . . . . . . . . . . . Repair Stations . | . . . . . . . . . . . . . . Recycling Units . | . . . . . . . . . . . . . . Scanalyzers . | . . . . . . . . . . . . . . Garrison Access 1 | . . . . . . . 1 . . . . . . Total Hacks 44 | . 10 2 4 . . . 12 . . 2 . 4 10 Successful 19 | . 5 2 1 . . . 4 . . 1 . 2 4 Failed 25 | . 5 . 3 . . . 8 . . 1 . 2 6 Catastrophic 2 | . . . . . . . . . . . . 1 1 Database Lockouts . | . . . . . . . . . . . . . . Manual 8 | . 2 . 1 . 1 . 1 . . . . 1 2 Terminals 38 | . 10 . 4 . . . 8 . . 2 . 4 10 Fabricators . | . . . . . . . . . . . . . . Repair Stations . | . . . . . . . . . . . . . . Recycling Units . | . . . . . . . . . . . . . . Scanalyzers . | . . . . . . . . . . . . . . Garrison Access 4 | . . . . . . . 4 . . . . . . Terminal Hacks 18 | . 5 2 1 . . . 4 . . 1 . 2 3 Record 1 | . . . . . . . 1 . . . . . . Robot Analysis 1 | . 1 . . . . . . . . . . . . Open Door 6 | . . 2 . . . . . . . . . 1 3 Open DSF 2 | . . . . . . . . . . 1 . 1 . Branch Access Points 1 | . . . 1 . . . . . . . . . . Emergency Access Points 1 | . 1 . . . . . . . . . . . . Alert Level 1 | . . . . . . . 1 . . . . . . Locate Traps 1 | . 1 . . . . . . . . . . . . Dispatch Records 2 | . 1 . . . . . 1 . . . . . . Transport Status 1 | . . . . . . . 1 . . . . . . Zone Layout 1 | . 1 . . . . . . . . . . . . Fabricator Hacks . | . . . . . . . . . . . . . . Repair Station Hacks . | . . . . . . . . . . . . . . Recycling Unit Hacks . | . . . . . . . . . . . . . . Scanalyzer . | . . . . . . . . . . . . . . Garrison Access Hacks . | . . . . . . . . . . . . . . Unauthorized Hacks 1 | . . . . . . . . . . . . . 1 Terminals 1 | . . . . . . . . . . . . . 1 Track 1 | . . . . . . . . . . . . . 1 Fabricators . | . . . . . . . . . . . . . . Repair Stations . | . . . . . . . . . . . . . . Recycling Units . | . . . . . . . . . . . . . . Scanalyzers . | . . . . . . . . . . . . . . Garrison Access . | . . . . . . . . . . . . . . Data Cores Recovered . | . . . . . . . . . . . . . . Used . | . . . . . . . . . . . . . . Hacking Detections 13 | . 3 . 2 . . . 4 . . . . 3 1 Full Trace Events 1 | . . . . . . . . . . . . . 1 Feedback Events . | . . . . . . . . . . . . . . Feedback Blocked . | . . . . . . . . . . . . . . Robot Schematics Acquired . | . . . . . . . . . . . . . . Robots Built . | . . . . . . . . . . . . . . Authchips . | . . . . . . . . . . . . . . Time . | . . . . . . . . . . . . . . Total Robot Build Rating . | . . . . . . . . . . . . . . Part Schematics Acquired . | . . . . . . . . . . . . . . Parts Built . | . . . . . . . . . . . . . . Authchips . | . . . . . . . . . . . . . . Time . | . . . . . . . . . . . . . . Total Part Build Rating . | . . . . . . . . . . . . . . Parts Repaired . | . . . . . . . . . . . . . . Time . | . . . . . . . . . . . . . . Parts Recycled . | . . . . . . . . . . . . . . Recycled Matter . | . . . . . . . . . . . . . . Retrieved Matter . | . . . . . . . . . . . . . . Retrieved Components . | . . . . . . . . . . . . . . Parts Scanalyzed . | . . . . . . . . . . . . . . Part Schematics Acquired . | . . . . . . . . . . . . . . Parts Damaged . | . . . . . . . . . . . . . . Bothacking | -11 -10 -10 -9 -9 -9 -8 -8 -7 -7 -7 -7 -6 -6 ------------ Run | Yrd Mat Min Mat Min Exi Min Mat Fac Was Fac DSF Fac Ext Used RIF Installer . | . . . . . . . . . . . . . . Robots Hacked . | . . . . . . . . . . . . . . Non-combat . | . . . . . . . . . . . . . . Combat . | . . . . . . . . . . . . . . Robot Hacks Applied . | . . . . . . . . . . . . . . Relay Couplers Released . | . . . . . . . . . . . . . . Fabnet Peak Effective % . | . . . . . . . . . . . . . . Robots Rewired 1 | . . . . . . . . . . . . . 1 Allies Hacked . | . . . . . . . . . . . . . . Hacks Repelled . | . . . . . . . . . . . . . . Allies | -11 -10 -10 -9 -9 -9 -8 -8 -7 -7 -7 -7 -6 -6 -------- Run | Yrd Mat Min Mat Min Exi Min Mat Fac Was Fac DSF Fac Ext Total Allies 4 | . . . . . . . . . . . . . 4 Largest Group 3 | . . . . . . . . . . . . . 3 Highest-Rated Group 65 | . . . . . . . . . . . . . 65 Highest-Rated Ally 25 | . . . . . . . . . . . . . 25 Total Orders 2 | . . . . . . . . . . . . 2 . EXPLORE 2 | . . . . . . . . . . . . 2 . Ally Attacks 12 | . . . . . . . . . . . . . 12 Total Damage 435 | . . . . . . . . . . . . . 435 Kills 4 | . . . . . . . . . . . . . 4 Allies Corrupted . | . . . . . . . . . . . . . . Allies Melted . | . . . . . . . . . . . . . . Intel | -11 -10 -10 -9 -9 -9 -8 -8 -7 -7 -7 -7 -6 -6 ------- Run | Yrd Mat Min Mat Min Exi Min Mat Fac Was Fac DSF Fac Ext Robot Analysis Total 1 | . 1 . . . . . . . . . . . . Derelict Logs Recovered 2 | . . 1 . 1 . . . . . . . . . Drone Launches 2 | . . . . . . . . . . . . 2 . Drone Recoveries 1 | . . . . . . . . . . . . 1 . Exploration | -11 -10 -10 -9 -9 -9 -8 -8 -7 -7 -7 -7 -6 -6 ------------- Run | Yrd Mat Min Mat Min Exi Min Mat Fac Was Fac DSF Fac Ext Turns Passed 6080 | 118 499 1225 427 1476 472 141 686 88 310 88 101 275 174 Spaces Moved 4149 | 65 272 587 212 864 292 89 356 54 173 191 143 579 272 Core 317 | 9 . . . . . . . . 106 72 . . 130 Treads 2849 | 56 272 587 212 864 292 89 356 54 67 . . . . Legs . | . . . . . . . . . . . . . . Wheels . | . . . . . . . . . . . . . . Hover . | . . . . . . . . . . . . . . Flight 983 | . . . . . . . . . . 119 143 579 142 Fastest Speed 30 | 50 160 160 160 160 160 160 160 162 50 40 34 30 30 Average Speed 126 | 144 160 190 160 160 160 160 160 162 98 43 37 31 39 Slowest Speed 700 | 160 160 240 160 160 160 160 162 162 700 50 40 40 50 Overloaded Moves . | . . . . . . . . . . . . . . Propulsion Burnouts . | . . . . . . . . . . . . . . Robots Hopped 8 | . . . . . . . . . . 1 1 2 4 Cave-ins Triggered . | . . . . . . . . . . . . . . Exploration Rate (%) 45 | 4 55 89 24 94 63 24 31 3 82 5 88 19 54 Regions Visited 13 Branch Regions 5 Pre-discovered Areas . | . . . . . . . . . . . . . . Known Exits Taken 2 | . . . 1 . . . . . . 1 . . . Unknown Exits Taken 8 | 1 1 1 . 1 1 1 1 . . . . 1 . Scrap Searched 2 | . . 1 . 1 . . . . . . . . . Spaces Dug 1 | . . . . . . . . . . . . 1 . Terrain Destroyed 58 | . 18 . . 21 . . . . . . 18 1 . Melee 1 | . . . . . . . . . . . . 1 . Projectile 1 | . 1 . . . . . . . . . . . . AOE 56 | . 17 . . 21 . . . . . . 18 . . Terrain Rammed . | . . . . . . . . . . . . . . Walls Destroyed . | . . . . . . . . . . . . . . Machines Disabled . | . . . . . . . . . . . . . . Actions | -11 -10 -10 -9 -9 -9 -8 -8 -7 -7 -7 -7 -6 -6 --------- Run | Yrd Mat Min Mat Min Exi Min Mat Fac Was Fac DSF Fac Ext Total 4811 | 79 310 661 298 907 296 88 426 56 312 193 185 667 333 Wait 416 | . 10 50 83 8 . . 32 . 140 . 39 45 9 Move 4123 | 64 271 586 211 863 291 88 355 54 172 188 140 574 266 Hop 6 | . . . . . . . . . . 1 1 2 2 Pick Up 24 | 2 7 3 1 3 1 . 4 . . . . 3 . Fast Attach 21 | 7 1 . . . 1 . 1 . . 2 1 8 . Attach 10 | . . . 2 1 . . 1 2 . 1 1 2 . Detach 6 | . . . . . 1 . . . . 1 . 4 . Swap 18 | . 6 1 . 3 2 . 4 . . . . 2 . Drop 14 | . 1 1 . 1 . . 4 . . . . 7 . Fire 98 | 6 14 20 1 28 . . 25 . . . 3 1 . Melee 2 | . . . . . . . . . . . . 1 1 Ram 4 | . . . . . . . . . . . . . 4 Kick . | . . . . . . . . . . . . . . Crush . | . . . . . . . . . . . . . . Escape Stasis 42 | . . . . . . . . . . . . 18 24 Rewire 27 | . . . . . . . . . . . . . 27 Trap . | . . . . . . . . . . . . . . Miscellaneous . | . . . . . . . . . . . . . . Route ------- -11/Scrapyard -10/Materials (discovered 4 exits: *Mat x3 / *Min) -10/Mines (discovered 2 exits: *Mat x2) -9/Materials (discovered 4 exits: *Min x2 / Sto x2) -9/Mines (discovered 2 exits: *Mat / *Exi) -9/Exiles -8/Mines -8/Materials -7/Factory -7/Waste -7/Factory -7/DSF -6/Factory (discovered 2 exits: [*Low] / *Ext) -6/Extension History --------- Turn | Location | Event 3 | -11/Scrapyard | Discovered new exit (range 15) 119 | -11/Scrapyard | Entered Materials 290 | -10/Materials | Discovered new exit (range 13) 313 | -10/Materials | Build established: Mutant 454 | -10/Materials | Discovered new exit (range 16) 579 | -10/Materials | Discovered new exit (range 8) 587 | -10/Materials | Discovered new exit (range 10) 618 | -10/Materials | Entered Mines 713 | -10/Mines | Assembled infested the area 718 | -10/Mines | Assisted by a Guerilla fighting off Assembled 979 | -10/Mines | Learned location of 1 exit from Materials 1110 | -10/Mines | Received a Rocket Launcher from a helpful Derelict 1328 | -10/Mines | Met a Derelict who couldn't figure out how to use a Trap Extractor 1573 | -10/Mines | Met a Derelict shopkeep closing up shop 1713 | -10/Mines | Discovered new exit (range 7) 1824 | -10/Mines | Discovered new exit (range 9) 1843 | -10/Mines | Entered Materials 1843 | -9/Materials | Evolved 2 slots: Propulsion x1, Utility x1 1844 | -9/Materials | Identified exit to Storage 2137 | -9/Materials | Identified exit to Mines 2270 | -9/Materials | Entered Mines 2456 | -9/Mines | Found a damaged Exp. Sensor Array with a note attached 2459 | -9/Mines | Found Prototype Device 2671 | -9/Mines | Discovered new exit (range 10) 2794 | -9/Mines | Deemed a non-threat by the Exiles lab entrance 2795 | -9/Mines | Discovered new exit (range 5) 3746 | -9/Mines | Entered Exiles 3785 | -9/Exiles | Met 8R-AWN 3814 | -9/Exiles | Met EX-HEX 3860 | -9/Exiles | Met EX-BIN 3983 | -9/Exiles | Aligned with FarCom system 3985 | -9/Exiles | Given EX-Vault access code 4028 | -9/Exiles | Opened EX-Vault 4037 | -9/Exiles | Found Prototype Storage 4037 | -9/Exiles | Identified Superbattery 4051 | -9/Exiles | Found Prototype Processor 4061 | -9/Exiles | Identified Exp. Sensor Array 4088 | -9/Exiles | Warned to stay clear of 0b10 Research branches 4099 | -9/Exiles | Exiles lab attacked by MAIN.C 4196 | -9/Exiles | Discovered new exit (range 14) 4218 | -9/Exiles | Stole two prototypes: Superbattery, Modified TNC 4218 | -9/Exiles | Entered Mines 4335 | -8/Mines | Discovered new exit (range 9) 4359 | -8/Mines | Entered Materials 4359 | -8/Materials | Evolved 2 slots: Propulsion x1, Utility x1 4811 | -8/Materials | Garrison activated, responded to threat 5036 | -8/Materials | Discovered new exit (range 7) 5045 | -8/Materials | Entered Factory 5045 | -7/Factory | Evolved 2 slots: Utility x2 5045 | -7/Factory | Identified Modified TNC 5047 | -7/Factory | FarCom data flow suspended 5067 | -7/Factory | Build established: Scavenger-Mutant 5133 | -7/Factory | Sucked down chute 5133 | -7/Factory | Entered Waste 5164 | -7/Waste | Spotted C-40 Crusher 5167 | -7/Waste | Spotted C-40 Crusher 5359 | -7/Waste | Spotted C-40 Crusher 5366 | -7/Waste | Spotted C-40 Crusher 5380 | -7/Waste | Crushed by Compactor (1 part destroyed, 2 dropped) 5382 | -7/Waste | Crushed by Compactor (1 part destroyed, 2 dropped) 5385 | -7/Waste | Crushed by Compactor (1 part destroyed, 2 dropped) 5387 | -7/Waste | Crushed by Compactor (1 part destroyed, 1 dropped) 5398 | -7/Waste | Spotted C-40 Crusher 5408 | -7/Waste | Spotted C-40 Crusher 5418 | -7/Waste | Lost 6 parts (1p1n3u1w) 5420 | -7/Waste | Discovered new exit (range 13) 5443 | -7/Waste | Entered Factory 5530 | -7/Factory | Identified exit to DSF 5531 | -7/Factory | Entered DSF 5556 | -7/DSF | Additional patrols routed to DSF 5597 | -7/DSF | Core integrity fell below 50% 5627 | -7/DSF | Discovered new exit (range 15) 5632 | -7/DSF | Entered Factory 5632 | -6/Factory | Evolved 2 slots: Utility x2 5663 | -6/Factory | Spotted B-75 Beast 5823 | -6/Factory | Discovered new exit (range 12) 5901 | -6/Factory | Discovered new exit (range 6) 5907 | -6/Factory | Entered Extension 5946 | -6/Extension | Rescued a captive Derelict 5958 | -6/Extension | Rescued a captive Derelict 5958 | -6/Extension | Rescued a captive Derelict 6002 | -6/Extension | Rescued a captive Derelict 6002 | -6/Extension | Spotted B-75 Beast 6004 | -6/Extension | Lost 5 parts (1p3n1u) 6010 | -6/Extension | Spotted B-75 Beast 6011 | -6/Extension | Core integrity fell below 50% 6016 | -6/Extension | Core integrity fell below 20% 6016 | -6/Extension | Rescued a captive Derelict 6028 | -6/Extension | Lost 3 allies 6081 | -6/Extension | Destroyed by G-50 Soldier with Heavy Laser Last Messages --------------- 06050_ Field strength at 88. 06051_ Field strength at 82. 06052_ Field strength at 76. 06053_ Field strength at 70. 06054_ Field strength at 64. 06055_ Field strength at 58. 06056_ Field strength at 52. 06057_ Field strength at 46. 06058_ Field strength at 40. 06059_ Field strength at 34. 06060_ Field strength at 28. 06061_ Field strength at 22. 06062_ Field strength at 16. 06063_ Field strength at 10. 06064_ Field strength at 4. 06065_ Stasis field depleted. 06070_ O-24 Administrator: "IFF HANDSHAKE FAILED. SECURING TERMINAL." 06073_ ALERT: Hostiles spotted, dispatching reinforcements to Terminal E012. Map ----- +----------------------------------------------------+ | | | | | | | | | | | | | | | | | | | | | | | | | | | | | | | | | | | | | | | | | | | #####???#########???????????????????????????????? | | #???# #???????????????????????????????? | | ##### #?????????#######???????????????? | | T ########## #???????????????? | | " @ +???????????????? | | ##########/g l #???????????????? | | ##### #????????? / g =#???????????????? | | #???# #??????????g h +???????????????? | | +####???####+####?????????? #???????????????? | | ????????????????????????????#####???????????????? | | ????????????????????????????????????????????????? | | ????????????????????????????????????????????????? | | ????????????????????????????????????????????????? | | ????????????????????????????????????????????????? | | ????????????????????????????????????????????????? | | ????????????????????????????????????????????????? | | ????????????????????????????????????????????????? | | ????????????????????????????????????????????????? | | ????????????????????????????????????????????????? | | ????????????????????????????????????????????????? | | ????????????????????????????????????????????????? | | ????????????????????????????????????????????????? | | ????????????????????????????????????????????????? | | ????????????????????????????????????????????????? | | ????????????????????????????????????????????????? | | ????????????????????????????????????????????????? | | ????????????????????????????????????????????????? | | ????????????????????????????????????????????????? | | ????????????????????????????????????????????????? | +----------------------------------------------------+ Best States ------------- Heat Dissipation 37 Energy Generation 18 Energy Capacity 1765 Matter Stores 300 Matter Capacity 300 Sight Range 16 Terrain Scan Density 10 Armor Coverage 225 Evasion (%) 64 Targeting Accuracy 8 Recoil Reduction 4 Offensive Hacking 10 Item Schematics ----------------- None Robot Schematics ------------------ None Fabricated ------------ Nothing Alien Tech Used ----------------- None Achievements -------------- None Challenges ------------ None Game ------ Seed CentriumEncryptedAutocannon Manual? 0 Play Time 00:45:05 Cumulative 383.0 hours Start 2024.04.24 @ 17:43:53 End 2024.04.24 @ 18:34:36 Sessions 1 Manual Loads 0 Difficulty Rogue Special Mode None Game No. 442 Rogue 442 Adventurer 0 Explorer 0 Win Type - Total 32 Types 21/3/7/1/0/0/0/0/0 Lore% 68 Gallery% 77 Achievement% 59 Wizard Run 0 Options --------- Layout 1 ASCII 1 Keyboard 1 Movement Numpad Keybinds 0 Fullscreen 1 Font 24/Smallcaps Map View 50x35 Zoom Use 0% Tactical HUD 1 Map Filters NONE Filters NONE Steam 1 RUN: 04ac342a-7744-4ddd-9f07-72d75a397d79